Cogmind - Beta 15 @@@ ROGUE MODE // 2025.06.15 @ 19:58:50 Player: dorusv Result: Destroyed by C-17 Slicer with Blade Saw Performance ------------- Evolutions (2) 1000 Regions Visited (4) 800 Robots Destroyed (36) 180 Value Destroyed (769) 769 Prototype IDs (1) 20 Alien Tech Used (0) 0 Bonus (0) 0 TOTAL SCORE: 2769 Bonus ------- None Cogmind --------- Core Integrity 0/550 Matter 180/300 Energy 11/100 System Corruption 3% Temperature Cool (0) Movement Flying (117) Ox1 Location -8/Materials Parts ------- > --- POWER (2) -------- (None) > --- PROPULSION (4) --- Flight Unit Flight Unit > --- UTILITY (3) ------ System Restoration Module > --- WEAPON (2) ------- Improved EM Pulse Cannon Power Maul > --- INVENTORY (5) ---- Faulty Improved VTOL Module Heavy Laser Peak State ------------ > --- POWER ------------ Deuterium Engine Light Deuterium Engine > --- PROPULSION ------- Hover Unit Hover Unit Improved Hover Unit Improved Hover Unit > --- UTILITY ---------- Structural Scanner Seismic Detector System Restoration Module > --- WEAPON ----------- Heavy Laser Assault Cannon > --- INVENTORY -------- Deuterium Engine Hover Unit Hover Unit Hover Unit System Restoration Module [Rating: 26] Favorites ----------- Power Deuterium Engine Engine Deuterium Engine Power Core Light Nuclear Core Propulsion Hover Unit Leg Aluminum Leg Hover Unit Hover Unit Flight Unit Flight Unit Utility Seismic Detector Device Seismic Detector Weapon Assault Cannon Energy Gun Medium Laser Energy Cannon Improved EM Pulse Cannon Ballistic Gun Light Assault Rifle Ballistic Cannon Assault Cannon Impact Weapon Power Maul Build | -11 -10 -9 -9 -8 ------- Run | Yrd Mat Mat Min Mat Slots Evolved 4 | . . 2 . 2 Power 1 | . . . . 1 Propulsion 2 | . . 2 . . Utility 1 | . . . . 1 Weapon . | . . . . . Parts Attached 38 | 7 4 6 3 18 Power 7 | 1 1 1 . 4 Engine 6 | 1 1 1 . 3 Core 1 | . . . . 1 Reactor . | . . . . . Propulsion 13 | 2 2 3 2 4 Treads . | . . . . . Leg 2 | 2 . . . . Wheel . | . . . . . Hover 8 | . 2 3 2 1 Flight 3 | . . . . 3 Utility 7 | 2 . . 1 4 Device 7 | 2 . . 1 4 Storage . | . . . . . Processor . | . . . . . Hackware . | . . . . . Protection . | . . . . . Artifact . | . . . . . Weapon 11 | 2 1 2 . 6 Energy Gun 5 | 2 1 . . 2 Energy Cannon 1 | . . . . 1 Ballistic Gun 1 | . . . . 1 Ballistic Cannon 3 | . . 2 . 1 Launcher . | . . . . . Special Weapon . | . . . . . Impact Weapon 1 | . . . . 1 Slashing Weapon . | . . . . . Piercing Weapon . | . . . . . Special Melee Weapon . | . . . . . Unidentified Prototypes 1 | . . . . 1 Parts Lost 20 | . 1 . . 19 Power 4 | . . . . 4 Propulsion 7 | . . . . 7 Utility 4 | . . . . 4 Weapon 5 | . 1 . . 4 Highest Loss Streak 14 | . 1 . . 14 To Critical Strikes . | . . . . . Average Backups 3 | 2 4 3 5 3 Power . | . . . 1 . Propulsion 1 | . 1 1 2 1 Utility . | . 1 1 1 . Weapon . | . . . 1 . Tool/Special . | . . . . . Unused Backups 2 | . 1 1 . . Power . | . . . . . Propulsion . | . . . . . Utility 2 | . 1 1 . . Weapon . | . . . . . Tool/Special . | . . . . . Average Slot Usage (%) 85 | . 99 97 100 75 Engine 11 | . 14 11 11 10 Core 1 | . . . . 1 Leg 3 | . 16 . . . Hover 23 | . 11 43 44 23 Flight 1 | . . . . 2 Device 22 | . 28 22 22 20 Energy Gun 10 | . 28 12 . 5 Ballistic Cannon 8 | . . 9 22 9 Peak Build Rating 26 | 9 9 18 18 26 Average Rating 14 | 5 8 13 16 18 On Entrance 10 | . 9 9 18 16 Naked Turns 53 | . . . . 53 Heaviest Build 31 | 9 9 21 21 31 Greatest Support 26 | 20 20 24 25 26 Greatest Overweight (x) 3 | 1 1 . . 3 Average Overweight (x) . | . . . . . Largest Inventory Capacity 5 | 5 5 5 5 5 Average Capacity 5 | 5 5 5 5 5 Most Carried 5 | 3 5 5 5 5 Average Carried 3 | 2 4 3 5 3 Final Capacity 5 | 5 5 5 5 5 Final Carried 5 | 3 5 5 5 2 Class Distribution -------------------- 100% | Mutant Dominant Class ---------------- Mutant | -10/Materials Mutant | -9/Materials Mutant | -9/Mines Mutant | -8/Materials Resources | -11 -10 -9 -9 -8 ----------- Run | Yrd Mat Mat Min Mat Matter Collected 951 | 270 40 . 200 441 Remotely . | . . . . . Salvage Created 993 | 159 219 63 43 509 Parts 62 | 16 15 5 3 23 Haulers Intercepted . | . . . . . Recyclers Shooed . | . . . . . Parts Field Recycled . | . . . . . Retrieved Matter . | . . . . . Parts Self-Destructed . | . . . . . Prevented . | . . . . . Kills | -11 -10 -9 -9 -8 ------- Run | Yrd Mat Mat Min Mat Combat Hostiles Destroyed 24 | . 7 . 3 14 Guns 11 | . 7 . . 4 Cannons 13 | . . . 3 10 Classes Destroyed 9 | 2 2 1 . 4 Builder 1 | . . . . 1 Tunneler 5 | 4 . . . 1 Recycler 4 | 1 . 1 . 2 Watcher 2 | . . 1 . 1 Swarmer 11 | . 3 . 1 7 Grunt 10 | . 4 . 2 4 Brawler 1 | . . . . 1 Sentry 1 | . . . . 1 Hunter 1 | . . . . 1 Best Kill Streak 9 | 3 5 1 2 9 Combat Bots Only 5 | . 5 . 2 4 Max Kills in Single Turn 2 | 2 1 1 1 1 Gunslinging . | . . . . . Exploded . | . . . . . Melee . | . . . . . Uniques/NPCs Destroyed . | . . . . . Combat | -11 -10 -9 -9 -8 -------- Run | Yrd Mat Mat Min Mat Hostile Shots Fired 259 | . 57 . 18 184 Missed 53 | . 9 . 6 38 Hits 206 | . 48 . 12 146 Melee 1 | . . . . 1 Projectile 205 | . 48 . 12 145 Critical Strikes 2 | . . . . 2 Damage Taken 2217 | . 469 . 142 1606 Core 703 | . 116 . 31 556 Absorbed by Shields . | . . . . . Core Remaining (%) 81 | 100 53 . 92 . Volleys Fired 115 | 10 27 2 9 67 Largest 2 | 2 2 2 2 2 Hottest 106 | 90 90 74 74 106 Shots Fired 192 | 20 39 4 18 111 Gun 98 | 20 39 . . 39 Cannon 94 | . . 4 18 72 Launcher . | . . . . . Special . | . . . . . Kinetic 98 | . . 4 18 76 Thermal 77 | 10 32 . . 35 Explosive . | . . . . . Electromagnetic 17 | 10 7 . . . Robot Hit Streak 8 | 3 8 1 7 8 Robot Miss Streak 6 | 2 4 1 1 6 Penetration Max . | . . . . . Secondary Targets 2 | . 2 . . . Max Gunslinging Chain 1 | . 1 . . . Shots Hit Robots 109 | 11 22 2 12 62 Core Hits 49 | 6 11 2 4 26 Critical Kills . | . . . . . Critical Parts Destroyed . | . . . . . Critical Strikes 6 | . 1 1 . 4 Burn 3 | . 1 . . 2 Blast 3 | . . 1 . 2 Melee Attacks 1 | . . . . 1 Impact 1 | . . . . 1 Slashing . | . . . . . Piercing . | . . . . . Sneak Attacks 1 | . . . . 1 Combat Hostiles . | . . . . . Follow-up Attacks . | . . . . . Damage Inflicted 2360 | 150 255 47 295 1613 Guns 783 | 150 255 . . 378 Cannons 1421 | . . 47 295 1079 Explosions . | . . . . . Melee 131 | . . . . 131 Ramming 25 | . . . . 25 Kinetic 1439 | . . 47 295 1097 Thermal 632 | 72 200 . . 360 Explosive . | . . . . . Electromagnetic 133 | 78 55 . . . Impact 131 | . . . . 131 Slashing . | . . . . . Piercing . | . . . . . Highest Corruption 7 | . . . . 7 Average Corruption 4 | . . . . 4 Corruption Purged 6 | . . . . 6 Corruption Blocked . | . . . . . Effects 8 | . . . . 8 Message Errors 1 | . . . . 1 Matter Fused 4 | . . . . 4 Energy Discharges 2 | . . . . 2 Data Loss (major) 1 | . . . . 1 Overload Shots . | . . . . . Overflow Damage 133 | . . . . 133 Projectiles 24 | . . . . 24 Explosions . | . . . . . Melee 109 | . . . . 109 Knockbacks 15 | . . . . 15 Impact . | . . . . . Kinetic 14 | . . . . 14 Secondary 1 | . . . . 1 Self-Inflicted Damage 12 | . . . . 12 Shots . | . . . . . Rammed 6 | . . . . 6 Targets Rammed 6 | . . . . 6 Kicked . | . . . . . Crushed . | . . . . . Highest Temperature 528 | 210 290 22 198 528 Average Temperature 158 | 83 162 14 85 184 Received Heat Transfer 687 | . 174 . 72 441 Effects 28 | . 3 . . 25 Shutdowns 9 | . . . . 9 Energy Bleed 1 | . . . . 1 Interference 6 | . 3 . . 3 Short Circuit 2 | . . . . 2 Damage (major) 10 | . . . . 10 Siege Activations . | . . . . . Martial Activations . | . . . . . Shielding Activations . | . . . . . Robots Disrupted . | . . . . . Combat Hostiles . | . . . . . Robots Corrupted . | . . . . . Combat Hostiles . | . . . . . Parts Fried 1 | 1 . . . . Impact Corruptions 2 | . . . . 2 Robots Melted . | . . . . . Combat Hostiles . | . . . . . Parts Melted 4 | . 3 . . 1 Heat Transferred 1668 | 222 595 . . 851 Parts Sabotaged . | . . . . . Parts Stolen . | . . . . . Parts Stripped . | . . . . . Power Chain Reactions . | . . . . . Alert | -11 -10 -9 -9 -8 ------- Run | Yrd Mat Mat Min Mat Maximum Alert Level 1 | . . . . 1 Low Security (%) 91 | 100 100 100 100 83 Level 1 8 | . . . . 16 Level 2 . | . . . . . Level 3 . | . . . . . Level 4 . | . . . . . Level 5 . | . . . . . High Security . | . . . . . Max Security . | . . . . . Peak Influence 259 | 10 101 32 54 259 Initial 27 | . . 27 . 9 Average 56 | . 49 13 30 79 Influence Increases 949 | 25 175 20 74 655 Destroy 0b10 Robot/C 480 | . 140 . 60 280 Destroy 0b10 Robot/NC 60 | 25 . 10 . 25 Destroy Leader 114 | . 30 2 10 72 Successful Hack 21 | . 4 8 . 9 Disable Machine 15 | . . . . 15 Destroy Structure 19 | . 1 . 4 14 Partial Spotted 30 | . . . . 30 Lose Combat Pursuer 210 | . . . . 210 Influence Decreases 717 | 25 110 85 50 447 Entered New Map 53 | . . 38 . 15 Time Decay 486 | 25 100 47 50 264 Lost Part 178 | . 10 . . 168 Squads Dispatched 8 | . 2 2 . 4 Investigation 3 | . 1 2 . . Extermination . | . . . . . Reinforcement 2 | . 1 . . 1 Assault . | . . . . . Garrison 3 | . . . . 3 Intercept . | . . . . . Searches Triggered . | . . . . . Construction Impeded . | . . . . . Haulers Reinforced . | . . . . . Active Scanning Responses . | . . . . . Cargo Convoy Interrupts . | . . . . . Stealth | -11 -10 -9 -9 -8 --------- Run | Yrd Mat Mat Min Mat Distress Signals 1 | . . . . 1 Communications Jammed . | . . . . . Distress Signals . | . . . . . Times Spotted 61 | . 11 1 3 46 Peak Tracking Total 9 | . 5 2 2 9 Tactical Retreats 8 | . . . . 8 Traps | -11 -10 -9 -9 -8 ------- Run | Yrd Mat Mat Min Mat Traps Triggered 1 | . . . . 1 Indirectly . | . . . . . Trap Hack Attempts . | . . . . . Triggered . | . . . . . Disarmed . | . . . . . Reprogrammed . | . . . . . Reused . | . . . . . Traps Extracted . | . . . . . Installed . | . . . . . Triggered . | . . . . . Machines | -11 -10 -9 -9 -8 ---------- Run | Yrd Mat Mat Min Mat Machines Disabled 2 | . . 1 . 1 Max in Single Turn 1 | . . 1 . 1 Machines Repaired . | . . . . . Machines Dismantled . | . . . . . Machines Sabotaged . | . . . . . Overloaded Fab Kills . | . . . . . Hacking | -11 -10 -9 -9 -8 --------- Run | Yrd Mat Mat Min Mat Machines Accessed 8 | . 3 3 . 2 Terminals 7 | . 3 3 . 1 Fabricators . | . . . . . Repair Stations . | . . . . . Recycling Units . | . . . . . Scanalyzers 1 | . . . . 1 Garrison Access . | . . . . . Total Hacks 26 | . 9 13 . 4 Successful 12 | . 2 7 . 3 Failed 14 | . 7 6 . 1 Catastrophic 1 | . 1 . . . Database Lockouts . | . . . . . Manual 2 | . . . . 2 Terminals 24 | . 9 13 . 2 Fabricators . | . . . . . Repair Stations . | . . . . . Recycling Units . | . . . . . Scanalyzers 2 | . . . . 2 Garrison Access . | . . . . . Terminal Hacks 10 | . 2 7 . 1 Record 1 | . 1 . . . Level Access Points 1 | . . . . 1 Emergency Access Points 1 | . . 1 . . Locate Traps 1 | . 1 . . . Maintenance Status 1 | . . 1 . . Reinforcement Status 1 | . . 1 . . Hauler Manifests 2 | . . 2 . . Zone Layout 2 | . . 2 . . Fabricator Hacks . | . . . . . Repair Station Hacks . | . . . . . Recycling Unit Hacks . | . . . . . Scanalyzer 2 | . . . . 2 Insert Component 1 | . . . . 1 Analyze 1 | . . . . 1 Garrison Access Hacks . | . . . . . Unauthorized Hacks . | . . . . . Terminals . | . . . . . Fabricators . | . . . . . Repair Stations . | . . . . . Recycling Units . | . . . . . Scanalyzers . | . . . . . Garrison Access . | . . . . . Data Cores Recovered . | . . . . . Used . | . . . . . Hacking Detections 6 | . 3 3 . . Full Trace Events 5 | . 3 2 . . Feedback Events . | . . . . . Feedback Blocked . | . . . . . Robot Schematics Acquired . | . . . . . Robots Built . | . . . . . Authchips . | . . . . . Time . | . . . . . Total Robot Build Rating . | . . . . . Part Schematics Acquired 1 | . . . . 1 Parts Built . | . . . . . Authchips . | . . . . . Time . | . . . . . Total Part Build Rating . | . . . . . Parts Repaired . | . . . . . Time . | . . . . . Parts Recycled . | . . . . . Recycled Matter . | . . . . . Retrieved Matter . | . . . . . Retrieved Components . | . . . . . Parts Scanalyzed 1 | . . . . 1 Part Schematics Acquired 1 | . . . . 1 Parts Damaged . | . . . . . Bothacking | -11 -10 -9 -9 -8 ------------ Run | Yrd Mat Mat Min Mat Used RIF Installer . | . . . . . Robots Hacked . | . . . . . Non-combat . | . . . . . Combat . | . . . . . Robot Hacks Applied . | . . . . . Relay Couplers Released . | . . . . . Fabnet Peak Effective % . | . . . . . Robots Rewired . | . . . . . Allies Hacked . | . . . . . Hacks Repelled . | . . . . . Allies | -11 -10 -9 -9 -8 -------- Run | Yrd Mat Mat Min Mat Total Allies . | . . . . . Largest Group . | . . . . . Highest-Rated Group . | . . . . . Highest-Rated Ally . | . . . . . Total Orders . | . . . . . Ally Attacks . | . . . . . Total Damage . | . . . . . Kills . | . . . . . Allies Corrupted . | . . . . . Allies Melted . | . . . . . Intel | -11 -10 -9 -9 -8 ------- Run | Yrd Mat Mat Min Mat Active Infowar (turns) 1038 | 49 288 101 109 491 Sensors 232 | . . . . 232 Terrain 488 | 49 288 101 50 . Structural 530 | . . . 58 472 Seismic 934 | 11 265 101 109 448 Robot Analysis Total . | . . . . . Derelict Logs Recovered . | . . . . . Drone Launches . | . . . . . Drone Recoveries . | . . . . . Exploration | -11 -10 -9 -9 -8 ------------- Run | Yrd Mat Mat Min Mat Turns Passed 1454 | 151 307 101 109 786 Spaces Moved 1360 | 95 260 160 159 686 Core 115 | 10 . . . 105 Treads . | . . . . . Legs 186 | 85 101 . . . Wheels . | . . . . . Hover 816 | . 159 160 159 338 Flight 243 | . . . . 243 Fastest Speed 37 | 50 56 48 48 37 Average Speed 71 | 113 81 48 48 72 Slowest Speed 200 | 120 120 48 48 200 Overloaded Moves . | . . . . . Propulsion Burnouts . | . . . . . Robots Hopped . | . . . . . Potential Cave-ins . | . . . . . Cave-ins Triggered . | . . . . . Exploration Rate (%) 28 | 5 34 16 37 52 Regions Visited 4 Branch Regions 1 Pre-discovered Areas . | . . . . . Known Exits Taken . | . . . . . Unknown Exits Taken 4 | 1 1 1 1 . Scrap Searched 1 | . . . 1 . Spaces Dug . | . . . . . Terrain Destroyed 16 | . . . 4 12 Melee . | . . . . . Projectile 16 | . . . 4 12 AOE . | . . . . . Terrain Rammed . | . . . . . Walls Destroyed . | . . . . . Machines Disabled . | . . . . . Actions | -11 -10 -9 -9 -8 --------- Run | Yrd Mat Mat Min Mat Total 1638 | 114 318 181 172 853 Wait 79 | . 17 5 1 56 Move 1356 | 94 259 159 158 686 Hop . | . . . . . Pick Up 13 | 3 5 3 . 2 Fast Attach 25 | 7 2 2 1 13 Attach 12 | . 1 2 . 9 Detach 5 | . 2 1 . 2 Swap 12 | . 1 2 2 7 Drop 14 | . 4 5 1 4 Fire 115 | 10 27 2 9 67 Melee 1 | . . . . 1 Ram 6 | . . . . 6 Kick . | . . . . . Crush . | . . . . . Escape Stasis . | . . . . . Rewire . | . . . . . Trap . | . . . . . Miscellaneous . | . . . . . Route ------- -11/Scrapyard -10/Materials -9/Materials -9/Mines -8/Materials (discovered 3 exits: Fac x3) History --------- Turn | Location | Event 21 | -11/Scrapyard | Discovered new exit (range 16) 152 | -11/Scrapyard | Entered Materials 317 | -10/Materials | Build established: Mutant 440 | -10/Materials | Discovered new exit (range 7) 459 | -10/Materials | Entered another Materials area 459 | -9/Materials | Evolved 2 slots: Propulsion x2 533 | -9/Materials | Discovered new exit (range 12) 560 | -9/Materials | Entered Mines 652 | -9/Mines | Discovered new exit (range 5) 669 | -9/Mines | Entered Materials 669 | -8/Materials | Evolved 2 slots: Power x1, Utility x1 1251 | -8/Materials | Garrison activated, responded to threat 1264 | -8/Materials | Core integrity fell below 50% 1288 | -8/Materials | Core integrity fell below 20% 1300 | -8/Materials | Lost 14 parts (3p4n3u4w) 1435 | -8/Materials | Identified exit to Factory 1455 | -8/Materials | Destroyed by C-17 Slicer with Blade Saw Last Messages --------------- 01391_ Destroyed Lgt. Ion Engine. 01391_ T-07 Excavator system corrupted by crushing effect. 01391_ T-07 Excavator destroyed. 01394_ System corrupted: Matter fused (-5). 01394_ Acquired 12 matter. 01404_ System Restoration Module purges 1% system corruption (3%). 01412_ Acquired Prototype Flight Unit. 01412_ Identified Imp. VTOL Module. 01412_ Hvy. Laser broken. 01412_ Faulty integration triggers power surge. 01414_ K-01 Serf cleans the Atomic Centrifuge. 01434_ ALERT: Suspicious intruders detected, dispatching Cutter reinforcements to area. 01435_ Connecting with Terminal... >>Access(Main) Found 3 level access points to Factory: (94,20) (9,88) (79,87) Map updated. 01447_ Acquired Imp. EM Pulse Cannon. Map ----- +----------------------------------------------------+ | ?????????????????????????????????????? | | ?????????????????????????????????????? | | ?????????????????????????????????????? | | ?????????????????????????????????????? | | ?????????????????????????????????????? | | ?????????????????????????????????????? | | ?????????????????????????????????????? | | ?????????????????????????????????????? | | ?????????????????????????????????????? | | ?????????????????????????????????????? | | ?????????????????????????????????????? | | ?????????????????????????????????????? | | ?????????????????????????????????????? | | ?????????????????????????????????????? | | ????????????????????????????????